fUST/lending_fUST_20240310
["ID","MTS","AMOUNT","RATE_DAILY","PERIOD"]
[318028557,1710042644699,-500.0,0.00022891,2]
[318028558,1710042644708,-500.0,0.00022891,2]
[318028559,1710042644717,-500.0,0.00022891,2]
[318028560,1710042644726,-542.65609912,0.00022891,2]
[318028561,1710042644735,-500.0,0.00022891,2]
[318028562,1710042644744,-500.0,0.00022891,2]
[318028563,1710042644753,-500.0,0.00022891,2]
[318028564,1710042644762,-500.0,0.00022891,2]
[318028565,1710042644772,-500.0,0.00022891,2]
[318028566,1710042644782,-500.0,0.00022891,2]
[318028567,1710042644790,-500.0,0.00022891,2]
[318028568,1710042644799,-500.0,0.00022896,2]
[318028569,1710042644809,-500.0,0.00022896,2]
[318028570,1710042644818,-500.0,0.00022896,2]
[318028571,1710042644827,-584.28082821,0.00022896,2]
[318028572,1710042644836,-607.31991356,0.00022896,2]
[318028573,1710042644845,-500.0,0.00022896,2]
[318028574,1710042644854,-500.0,0.00022896,2]
[318028575,1710042644863,-500.0,0.00022896,2]
[318028576,1710042644872,-500.0,0.00022896,2]
[318028577,1710042644881,-870.83,0.00022896,2]
[318028578,1710042644891,-500.0,0.00022896,2]
[318028579,1710042644900,-6937.88,0.00022896,2]
[318028580,1710042644909,-500.0,0.00022897,2]
[318028581,1710042644919,-500.0,0.00022897,2]
[318028582,1710042644928,-500.0,0.00022897,2]
[318028583,1710042644937,-500.0,0.00022897,2]
[318028584,1710042644946,-500.0,0.00022897,2]
[318028585,1710042644955,-500.0,0.00022897,2]
[318028586,1710042644964,-500.0,0.00022897,2]
[318028587,1710042644973,-500.0,0.00022898,2]
[318028588,1710042644982,-500.49898856,0.00022898,2]
[318028589,1710042644991,-490.66,0.00022898,2]
[318028590,1710042645001,-500.0,0.00022898,2]
[318028591,1710042645010,-3003.4,0.00022898,2]
[318028592,1710042645019,-500.0,0.00022898,2]
[318028593,1710042645028,-500.0,0.00022898,2]
[318028594,1710042645037,-500.0,0.00022898,2]
[318028595,1710042645046,-296.63696177,0.00022898,2]
[318028596,1710042645055,-3814.06,0.00022898,2]
[318028597,1710042645065,-500.0,0.00022898,2]
[318028598,1710042645073,-500.0,0.00022898,2]
[318028599,1710042645082,-500.0,0.00022898,2]
[318028600,1710042645091,-500.0,0.00022898,2]
[318028601,1710042645101,-500.0,0.00022898,2]
[318028602,1710042645110,-416.57325148,0.00022898,2]
[318028603,1710042645119,-500.0,0.00022898,2]
[318028604,1710042645128,-870.83,0.00022898,2]
[318028605,1710042645137,-500.0,0.00022898,2]
[318028606,1710042645146,-500.0,0.00022898,2]
[318028607,1710042645155,-500.0,0.00022898,2]
[318028608,1710042645164,-6937.88,0.00022898,2]
[318028609,1710042645173,-291.14031416,0.00022898,2]
[318028610,1710042645182,-500.0,0.00022898,2]
[318028611,1710042645191,-500.0,0.00022898,2]
[318028612,1710042645201,-500.0,0.00022898,2]
[318028613,1710042645210,-500.0,0.00022898,2]
[318028614,1710042645219,-285.75437817,0.00022898,2]
[318028615,1710042645228,-500.0,0.00022898,2]
[318028616,1710042645237,-500.0,0.00022898,2]
[318028617,1710042645246,-500.0,0.00022898,2]
[318028618,1710042645255,-27649.64544412,0.00022899,2]
[318028619,1710042645264,-2000.0,0.000229,2]
[318028620,1710042645276,-2000.0,0.000229,2]
[318028621,1710042645285,-2000.0,0.0002291,2]
[318028622,1710042645294,-2000.0,0.0002291,2]
[318028623,1710042645304,-2000.0,0.0002292,2]
[318028624,1710042645313,-2000.0,0.0002292,2]
[318028625,1710042645322,-500.0,0.00022927,2]
[318028626,1710042645331,-3003.4,0.00022927,2]
[318028627,1710042645343,-3814.06,0.00022927,2]
[318028628,1710042645352,-359.43,0.00022927,2]
[318028629,1710042645361,-412.27925533,0.00022927,2]
[318028630,1710042645370,-500.0,0.00022928,2]
[318028631,1710042645380,-316.14021579,0.00022928,2]
[318028632,1710042645389,-500.0,0.00022928,2]
[318028633,1710042645398,-500.0,0.00022928,2]
[318028634,1710042645407,-500.0,0.00022929,2]
[318028635,1710042645416,-2000.0,0.0002293,2]
[318028636,1710042645425,-2000.0,0.0002293,2]
[318028637,1710042645434,-2000.0,0.0002294,2]
[318028638,1710042645443,-2000.0,0.0002294,2]
[318028639,1710042645452,-500.0,0.00022949,2]
[318028640,1710042645465,-500.0,0.00022949,2]
[318028641,1710042645474,-500.0,0.00022949,2]
[318028642,1710042645483,-500.0,0.00022949,2]
[318028643,1710042645492,-500.0,0.00022949,2]
[318028644,1710042645502,-500.0,0.00022949,2]
[318028645,1710042645511,-500.0,0.00022949,2]
[318028646,1710042645521,-870.83,0.00022949,2]
[318028647,1710042645531,-500.0,0.00022949,2]
[318028648,1710042645542,-6937.88,0.00022949,2]
[318028649,1710042645551,-2000.0,0.0002295,2]
[318028650,1710042645560,-2000.0,0.0002295,2]
[318028651,1710042645569,-2000.0,0.0002296,2]
[318028652,1710042645580,-2000.0,0.0002296,2]
[318028653,1710042645589,-500.0,0.00022967,2]
[318028654,1710042645598,-500.0,0.00022967,2]
[318028655,1710042645610,-500.0,0.00022967,2]
[318028656,1710042645620,-610.95380225,0.00022968,2]
[318028657,1710042645629,-500.0,0.00022968,2]
[318028658,1710042645638,-500.0,0.00022968,2]
[318028659,1710042645648,-500.0,0.00022969,2]
[318028660,1710042645657,-3003.4,0.00022969,2]
[318028661,1710042645666,-3814.06,0.00022969,2]
[318028662,1710042645675,-2000.0,0.0002297,2]
[318028663,1710042645685,-2000.0,0.0002297,2]
[318028664,1710042645694,-6113.70533267,0.00022975,2]
[318028665,1710042645703,-2000.0,0.0002298,2]
[318028666,1710042645712,-2000.0,0.0002298,2]
[318028667,1710042645722,-500.0,0.00022983,2]
[318028668,1710042645731,-3003.4,0.00022983,2]
[318028669,1710042645741,-500.0,0.00022983,2]
[318028670,1710042645750,-500.0,0.00022983,2]
[318028671,1710042645759,-266.39066386,0.00022983,2]
[318028672,1710042645769,-500.0,0.00022983,2]
[318028674,1710042645778,-500.0,0.00022983,2]
[318028676,1710042645788,-3814.06,0.00022983,2]
[318028677,1710042645797,-500.0,0.00022983,2]
[318028678,1710042645806,-500.0,0.00022983,2]
[318028679,1710042645815,-248.25175555,0.00022983,2]
[318028680,1710042645824,-442.84800489,0.00022983,2]
[318028681,1710042645834,-500.0,0.00022983,2]
[318028682,1710042645843,-500.0,0.00022983,2]
[318028683,1710042645852,-870.83,0.00022983,2]
[318028684,1710042645861,-870.83,0.00022983,2]
[318028685,1710042645870,-500.0,0.00022983,2]
[318028686,1710042645880,-500.0,0.00022983,2]
[318028687,1710042645889,-500.0,0.00022983,2]
[318028689,1710042645898,-500.0,0.00022983,2]
[318028690,1710042645907,-6937.88,0.00022983,2]
[318028691,1710042645916,-6937.88,0.00022983,2]
[318028692,1710042645925,-186.94845585,0.00022984,2]
[318028693,1710042645934,-39327.64535031,0.00022984,3]
[318028694,1710042645943,-700.0,0.00022984,2]
[318028695,1710042645952,-3583.10483486,0.00022984,2]
[318028696,1710042645961,-582.25453565,0.00022984,2]
[318028698,1710042645970,-500.0,0.00022988,2]
[318028699,1710042645979,-500.0,0.00022988,2]
[318028705,1710042646055,-500.0,0.00022989,2]
[318028707,1710042646064,-500.0,0.00022989,2]
[318028709,1710042646073,-2000.0,0.0002299,2]
[318028711,1710042646082,-2000.0,0.0002299,2]
[318028713,1710042646092,-586.90104418,0.00022995,2]
[318028715,1710042646100,-500.0,0.00022995,2]
[318028717,1710042646109,-3003.4,0.00022995,2]
[318028719,1710042646118,-3814.06,0.00022995,2]
[318028721,1710042646127,-500.0,0.00022996,2]
[318028723,1710042646136,-500.0,0.00022996,2]
[318028725,1710042646145,-500.0,0.00022996,2]
[318028727,1710042646154,-500.0,0.00022996,2]
[318028729,1710042646162,-500.0,0.00022996,2]
[318028731,1710042646171,-500.0,0.00022996,2]
[318028733,1710042646180,-870.83,0.00022996,2]
[318028735,1710042646189,-500.0,0.00022996,2]
[318028737,1710042646198,-500.0,0.00022996,2]
[318028738,1710042646207,-500.0,0.00022996,2]
[318028740,1710042646216,-6937.88,0.00022996,2]
[318028742,1710042646225,-500.0,0.00022997,2]
[318028745,1710042646235,-357.07841182,0.00022997,2]
[318028747,1710042646245,-3003.4,0.00022997,2]
[318028748,1710042646254,-3003.4,0.00022997,2]
[318028750,1710042646263,-500.0,0.00022997,2]
[318028753,1710042646272,-500.0,0.00022997,2]
[318028754,1710042646283,-3814.06,0.00022997,2]
[318028757,1710042646292,-3814.06,0.00022997,2]
[318028759,1710042646301,-500.0,0.00022997,2]
[318028761,1710042646311,-500.0,0.00022997,2]
[318028762,1710042646320,-264.25,0.00022997,2]
[318028765,1710042646329,-500.0,0.00022997,2]
[318028766,1710042646338,-500.0,0.00022997,2]
[318028768,1710042646348,-870.83,0.00022997,2]
[318028770,1710042646357,-500.0,0.00022997,2]
[318028772,1710042646366,-500.0,0.00022997,2]
[318028775,1710042646375,-251.8939281,0.00022997,2]
[318028777,1710042646385,-500.0,0.00022997,2]
[318028779,1710042646394,-500.0,0.00022997,2]
[318028780,1710042646403,-6937.88,0.00022997,2]
[318028783,1710042646412,-160.0,0.00022998,2]
[318028785,1710042646422,-365.18041102,0.00022998,2]
[318028787,1710042646431,-249.85105701,0.00022998,2]
[318028789,1710042646440,-198.07709061,0.00022998,2]
[318028791,1710042646450,-360.30107328,0.00022998,2]
[318028793,1710042646461,-4141.15243752,0.00022998,2]
[318028794,1710042646471,-3960.27874649,0.00022998,2]
[318028797,1710042646480,-3172.63873562,0.00022998,2]
[318028798,1710042646489,-241.62110781,0.00022998,2]
[318028800,1710042646499,-1900.30068615,0.00022998,2]
[318028802,1710042646508,-158.33423333,0.00022998,2]
[318028804,1710042646517,-878.45698081,0.00022998,2]
[318028806,1710042646527,-287.54536248,0.00022998,2]
[318028808,1710042646536,-231.99204592,0.00022998,2]
[318028810,1710042646545,-302.98919803,0.00022998,2]
[318028812,1710042646554,-185.82878525,0.00022998,2]
[318028814,1710042646564,-1268.85457939,0.00022998,2]
[318028816,1710042646573,-155.49110306,0.00022998,2]
[318028818,1710042646582,-309.48679212,0.00022998,2]
[318028820,1710042646592,-2071.35249957,0.00022998,2]
[318028822,1710042646601,-503.61383291,0.00022998,2]
[318028825,1710042646610,-1674.01625201,0.00022998,2]
[318028828,1710042646619,-201.0,0.00022998,2]
[318028831,1710042646629,-3003.4,0.00022998,2]
[318028833,1710042646640,-3003.4,0.00022998,2]
[318028835,1710042646649,-3003.4,0.00022998,2]
[318028837,1710042646658,-3003.4,0.00022998,2]
[318028839,1710042646668,-3003.4,0.00022998,2]
[318028841,1710042646677,-500.0,0.00022998,2]
[318028843,1710042646686,-500.0,0.00022998,2]
[318028845,1710042646696,-500.0,0.00022998,2]
[318028847,1710042646705,-500.0,0.00022998,2]
[318028849,1710042646714,-500.0,0.00022998,2]
[318028851,1710042646724,-151.77153738,0.00022998,2]
[318028853,1710042646733,-500.0,0.00022998,2]
[318028855,1710042646742,-500.0,0.00022998,2]
[318028857,1710042646751,-500.0,0.00022998,2]
[318028860,1710042646761,-407.13134021,0.00022998,2]
[318028862,1710042646771,-3814.06,0.00022998,2]
[318028864,1710042646781,-3814.06,0.00022998,2]
[318028866,1710042646790,-3814.06,0.00022998,2]
[318028867,1710042646799,-3814.06,0.00022998,2]
[318028869,1710042646808,-3814.06,0.00022998,2]
[318028871,1710042646818,-374.05296995,0.00022998,2]
[318028873,1710042646827,-500.0,0.00022998,2]
[318028875,1710042646836,-500.0,0.00022998,2]
[318028877,1710042646845,-500.0,0.00022998,2]
[318028879,1710042646854,-500.0,0.00022998,2]
[318028881,1710042646864,-500.0,0.00022998,2]
[318028883,1710042646873,-247.07310038,0.00022998,2]
[318028885,1710042646881,-500.0,0.00022998,2]
[318028887,1710042646891,-500.0,0.00022998,2]
[318028889,1710042646900,-870.83,0.00022998,2]
[318028891,1710042646909,-500.0,0.00022998,2]
[318028893,1710042646917,-870.83,0.00022998,2]
[318028895,1710042646926,-500.0,0.00022998,2]
[318028897,1710042646936,-870.83,0.00022998,2]
[318028899,1710042646944,-500.0,0.00022998,2]
[318028901,1710042646953,-870.83,0.00022998,2]
[318028903,1710042646963,-500.0,0.00022998,2]
[318028906,1710042646972,-870.83,0.00022998,2]
[318028907,1710042646982,-870.83,0.00022998,2]
[318028910,1710042646991,-500.0,0.00022998,2]
[318028912,1710042647000,-500.0,0.00022998,2]
[318028913,1710042647009,-500.0,0.00022998,2]
[318028916,1710042647019,-500.0,0.00022998,2]
[318028917,1710042647028,-500.0,0.00022998,2]
[318028919,1710042647037,-500.0,0.00022998,2]
[318028921,1710042647047,-500.0,0.00022998,2]
[318028923,1710042647056,-500.0,0.00022998,2]
[318028925,1710042647066,-6937.88,0.00022998,2]
[318028928,1710042647075,-500.0,0.00022998,2]
[318028929,1710042647084,-6937.88,0.00022998,2]
[318028931,1710042647093,-6937.88,0.00022998,2]
[318028934,1710042647109,-6937.88,0.00022998,2]
[318028935,1710042647119,-6937.88,0.00022998,2]
[318028937,1710042647128,-6937.88,0.00022998,2]
[318028939,1710042647137,-270.38863747,0.00022999,3]
[318028941,1710042647146,-3003.4,0.00022999,2]
[318028943,1710042647155,-3003.4,0.00022999,2]
[318028945,1710042647164,-1528.98358683,0.00022999,2]
[318028956,1710042647248,-427.63664462,0.00022999,2]
[318028971,1710042647386,-1046.77976855,0.00022999,2]
[318028973,1710042647396,-3003.4,0.00022999,2]
[318028975,1710042647405,-1029.04764554,0.00022999,2]
[318028978,1710042647417,-1974.35235446,0.00022999,2]
[318028980,1710042647426,-3003.4,0.00022999,2]
[318028982,1710042647436,-3003.4,0.00022999,2]
[318028984,1710042647445,-3003.4,0.00022999,2]
[318028986,1710042647455,-3003.4,0.00022999,2]
[318028988,1710042647468,-2009.76424676,0.00022999,2]
[318028990,1710042647479,-993.63575324,0.00022999,2]
[318028992,1710042647489,-3003.63045346,0.00022999,2]
[318028994,1710042647498,-3814.06,0.00022999,2]
[318028996,1710042647508,-3814.06,0.00022999,2]
[318028998,1710042647517,-3814.06,0.00022999,2]
[318029000,1710042647527,-3814.06,0.00022999,2]
[318029002,1710042647537,-3814.06,0.00022999,2]
[318029004,1710042647546,-3814.06,0.00022999,2]
[318029006,1710042647556,-3814.06,0.00022999,2]
[318029007,1710042647565,-3814.06,0.00022999,2]
[318029008,1710042647574,-3814.06,0.00022999,2]
[318029009,1710042647584,-3814.06,0.00022999,2]
[318029010,1710042647593,-3814.08393285,0.00022999,2]
[318029011,1710042647603,-500.0,0.00022999,2]
[318029012,1710042647612,-500.0,0.00022999,2]
[318029013,1710042647621,-500.0,0.00022999,2]
[318029014,1710042647631,-500.0,0.00022999,2]
[318029015,1710042647641,-500.0,0.00022999,2]
[318029016,1710042647651,-500.0,0.00022999,2]
[318029017,1710042647661,-500.0,0.00022999,2]
[318029018,1710042647670,-500.0,0.00022999,2]
[318029019,1710042647680,-500.0,0.00022999,2]
[318029020,1710042647689,-267.02601248,0.00022999,2]
[318029021,1710042647698,-500.0,0.00022999,2]
[318029022,1710042647707,-500.0,0.00022999,2]
[318029023,1710042647716,-870.83,0.00022999,2]
[318029024,1710042647726,-500.0,0.00022999,2]
[318029025,1710042647735,-870.83,0.00022999,2]
[318029026,1710042647745,-500.0,0.00022999,2]
[318029027,1710042647754,-870.83,0.00022999,2]
[318029028,1710042647764,-500.0,0.00022999,2]
[318029029,1710042647773,-870.83,0.00022999,2]
[318029030,1710042647784,-870.83,0.00022999,2]
[318029031,1710042647794,-870.83,0.00022999,2]
[318029032,1710042647803,-500.0,0.00022999,2]
[318029033,1710042647813,-870.83,0.00022999,2]
[318029034,1710042647822,-500.0,0.00022999,2]
[318029035,1710042647831,-500.0,0.00022999,2]
[318029036,1710042647840,-870.83,0.00022999,2]
[318029037,1710042647849,-870.83,0.00022999,2]
[318029038,1710042647858,-541.92389893,0.00022999,2]
[318029039,1710042647867,-870.9518702,0.00022999,2]
[318029040,1710042647876,-600.5,0.00022999,2]
[318029041,1710042647886,-500.0,0.00022999,2]
[318029042,1710042647895,-500.0,0.00022999,2]
[318029043,1710042647905,-500.0,0.00022999,2]
[318029044,1710042647914,-500.0,0.00022999,2]
[318029045,1710042647924,-550.77566838,0.00022999,2]
[318029046,1710042647934,-6937.88,0.00022999,2]
[318029047,1710042647943,-6937.88,0.00022999,2]
[318029048,1710042647956,-6937.88,0.00022999,2]
[318029049,1710042647966,-6937.88,0.00022999,2]
[318029050,1710042647975,-6937.88,0.00022999,2]
[318029051,1710042647985,-6937.88,0.00022999,2]
[318029052,1710042647994,-6937.88,0.00022999,2]
[318029053,1710042648004,-6937.88,0.00022999,2]
[318029054,1710042648013,-6937.88,0.00022999,2]
[318029055,1710042648022,-762.25360374,0.00022999,2]
[318029056,1710042648034,-460.0,0.00022999,2]
[318029839,1710043838594,-155.14739002,0.00016632,2]
[318029841,1710043838603,-155.14739002,0.00016633,2]
[318029843,1710043838612,-196.18698328,0.00016799,2]
[318030013,1710043840630,-297.91664767,0.00016799,2]
[318030015,1710043840642,-362.68449822,0.00016799,2]
[318030018,1710043840654,-403.5335302,0.00016799,2]
[318030022,1710043840687,-3983.9,0.00016799,2]
[318030024,1710043840698,-4565.8429738,0.00016799,2]
[318030030,1710043840743,-1165.68634587,0.00016799,2]
[318030032,1710043840755,-113.36319285,0.000168,2]
[318030034,1710043840767,-3884.8603663,0.000168,2]
[318030036,1710043840777,-94.32932834,0.00016802,2]
[318030038,1710043840789,-1593.98310478,0.00016802,2]
[318030040,1710043840799,-308.63735369,0.000176,2]
[318030042,1710043840809,-786.52712065,0.00020899,2]
[318030044,1710043840818,-223.5562942,0.00021755,2]
[318030046,1710043840830,-159.0,0.00022,2]
[318030048,1710043840840,-165.0,0.00022,2]
[318030050,1710043840851,-875.78225158,0.00022738,2]
[318030052,1710043840860,-500.0,0.00022739,2]
[318030054,1710043840870,-171.18491128,0.00022769,2]
[318030056,1710043840881,-345.85110701,0.00022799,2]
[318030058,1710043840891,-500.0,0.00022799,2]
[318030060,1710043840902,-635.72631345,0.00022799,2]
[318030062,1710043840912,-500.0,0.00022799,2]
[318030065,1710043840922,-193.76605105,0.00022799,2]
[318030067,1710043840932,-500.0,0.00022799,2]
[318030069,1710043840942,-282.51734435,0.00022799,2]
[318030071,1710043840952,-270.38863747,0.000228,3]
[318030073,1710043840962,-17810.11194981,0.000228,7]
[318030334,1710043843737,-500.0,0.000228,7]
[318030675,1710043846699,-1568.85580144,0.00022572,2]
[318030683,1710043846758,-34536.0,0.00022572,2]
[318032757,1710045039599,-1518.34020742,0.00018801,2]
[318032765,1710045039658,-618.74397105,0.00018801,2]
[318033296,1710045044580,-8838.66680057,0.00018801,2]
[318033298,1710045044589,-155.14739002,0.00018801,2]
[318033300,1710045044599,-9253.98951314,0.00018802,2]
[318033302,1710045044612,-1876.90885592,0.00018802,2]
[318033304,1710045044622,-2303.02942273,0.00019186,5]
[318033306,1710045044631,-5619.48763805,0.00020699,2]
[318033308,1710045044641,-434.36369396,0.000207,2]
[318033310,1710045044654,-89.9877198,0.000207,2]
[318033312,1710045044663,-248.0,0.00022,2]
[318033314,1710045044674,-248.0,0.00022192,2]
[318033316,1710045044684,-201.004339,0.000222,2]
[318033318,1710045044693,-201.004339,0.000222,2]
[318033320,1710045044702,-201.004339,0.000222,2]
[318033321,1710045044713,-173.322455,0.00022393,2]
[318033323,1710045044724,-239.437806,0.00022393,2]
[318033325,1710045044736,-998.05204944,0.00022572,2]
[318033328,1710045044751,-1073.30045013,0.00022572,2]
[318033330,1710045044761,-990.05665748,0.00022572,2]
[318033332,1710045044772,-990.05665748,0.00022572,2]
[318033334,1710045044781,-1150.38213128,0.00022639,2]
[318033336,1710045044791,-1150.38213127,0.00022669,2]
[318033338,1710045044801,-173.322455,0.00022673,2]
[318033339,1710045044810,-239.437806,0.00022673,2]
[318033341,1710045044819,-486.73984862,0.00022699,2]
[318033344,1710045044829,-5604.70055179,0.000227,2]
[318033346,1710045044842,-3727.2975568,0.000227,2]
[318033657,1710045048111,-1150.38213127,0.00022699,2]
[318033659,1710045048121,-38.7647703,0.000227,2]
[318036070,1710046239956,-331.25647707,0.00019359,2]
[318036072,1710046239967,-554.06701497,0.0001936,2]
[318036074,1710046239980,-554.06701497,0.00019361,2]
[318036076,1710046239991,-434.81095729,0.000206,2]
[318036078,1710046240001,-168.7961231,0.00020674,2]
[318036080,1710046240012,-149.05405868,0.00020829,2]
[318036082,1710046240025,-1557.81125677,0.00020829,2]
[318036363,1710046242985,-9268.88566359,0.00020829,2]
[318036365,1710046242994,-169.9582587,0.0002083,2]
[318036367,1710046243004,-242.0,0.00022,2]
[318036369,1710046243013,-242.0,0.00022192,2]
[318036371,1710046243022,-200.6600275,0.000225,2]
[318036372,1710046243031,-1222.6519772,0.00022572,2]
[318036385,1710046243140,-407.37,0.00022699,2]
[318036387,1710046243150,-407.37,0.00022699,2]
[318036389,1710046243160,-407.37,0.00022699,2]
[318036391,1710046243169,-407.37,0.00022699,2]
[318036393,1710046243179,-407.37,0.00022699,2]
[318036395,1710046243188,-407.37,0.00022699,2]
[318036397,1710046243197,-407.37,0.00022699,2]
[318036399,1710046243207,-407.37,0.00022699,2]
[318036401,1710046243217,-407.37,0.00022699,2]
[318036403,1710046243227,-407.37,0.00022699,2]
[318036404,1710046243236,-500.0,0.00022699,2]
[318036406,1710046243245,-500.0,0.00022699,2]
[318036408,1710046243255,-500.0,0.00022699,2]
[318036410,1710046243264,-500.0,0.00022699,2]
[318036412,1710046243273,-500.0,0.00022699,2]
[318036414,1710046243283,-990.05665748,0.000227,2]
[318036416,1710046243292,-155.14739002,0.000227,2]
[318036418,1710046243301,-36395.47738985,0.000227,2]
[318036420,1710046243312,-828.65150624,0.000227,2]
[318036679,1710046246103,-3681.95025,0.0002062,2]
[318036686,1710046246160,-5586.93541359,0.0002062,2]
[318036688,1710046246169,-19911.39256524,0.000227,2]
[318038977,1710047433832,-369.37800998,0.00018427,2]
[318038978,1710047433842,-331.25647707,0.00018427,2]
[318038979,1710047433852,-401.4224827,0.00018427,2]
[318038980,1710047433862,-401.4224827,0.00018428,2]
[318038981,1710047433872,-10975.75097904,0.00018615,2]
[318038982,1710047433882,-13229.89168433,0.00018616,2]
[318038983,1710047433895,-10509.0239435,0.00018622,2]
[318038984,1710047433906,-171.5206015,0.00019178,2]
[318038985,1710047433916,-12344.08262026,0.0002,2]
[318038986,1710047433926,-289.87397152,0.000206,2]
[318038987,1710047433936,-188.0,0.00022,2]
[318038988,1710047433947,-155.21498031,0.000223,2]
[318038989,1710047433959,-124366.39026888,0.00022699,2]
[318038990,1710047433969,-426259.92774821,0.000227,2]
[318039003,1710047440064,-1145.20715346,0.00022473,2]
[318039004,1710047440076,-1275.26938795,0.000227,2]
[318039013,1710047440180,-2307.48092067,0.000227,2]
[318039352,1710047443213,-7619.66438143,0.000227,2]
[318039661,1710047446285,-1261.42975,0.000227,2]
[318041121,1710048633016,-596.19717157,0.00017246,2]
[318041123,1710048633030,-331.25647707,0.00017247,2]
[318041125,1710048633040,-528.65561539,0.00017247,2]
[318041127,1710048633050,-307.81500831,0.00017248,2]
[318041129,1710048633060,-191.54405702,0.00017248,2]
[318041131,1710048633070,-3998.22355915,0.00017248,2]
[318041134,1710048633079,-1474.41177418,0.00017248,2]
[318041137,1710048633089,-615.4254903,0.00017249,2]
[318041140,1710048633100,-524.47552081,0.00017641,2]
[318041143,1710048633110,-281.624308,0.00017642,2]
[318041146,1710048633119,-15258.05486311,0.00017965,2]
[318041149,1710048633129,-10975.75097904,0.00017966,2]
[318041152,1710048633138,-1053.1311362,0.00017968,2]
[318041154,1710048633147,-20507.87031804,0.00018148,2]
[318041157,1710048633156,-3091.8971522,0.00018544,2]
[318041160,1710048633165,-270.6930388,0.00018693,2]
[318041163,1710048633175,-500.0,0.00019178,2]
[318041165,1710048633184,-500.0,0.00019178,2]
[318041167,1710048633195,-500.0,0.00019178,2]
[318041169,1710048633204,-500.0,0.00019178,2]
[318041172,1710048633213,-344.75986826,0.00019178,2]
[318041175,1710048633222,-500.0,0.00019178,2]
[318041178,1710048633232,-500.0,0.00019178,2]
[318041181,1710048633241,-500.0,0.00019178,2]
[318041184,1710048633250,-500.0,0.00019178,2]
[318041187,1710048633260,-500.0,0.00019178,2]
[318041190,1710048633269,-185.270066,0.00019178,2]
[318041192,1710048633278,-174.259094,0.00019178,2]
[318041195,1710048633287,-1015.59820062,0.00019941,2]
[318041198,1710048633296,-682.55292822,0.00020598,2]
[318041201,1710048633305,-326.65088458,0.00020599,2]
[318041202,1710048633314,-505.39203336,0.000206,2]
[318041204,1710048633324,-185.270066,0.00021422,2]
[318041206,1710048633332,-173.0,0.00022,2]
[318041208,1710048633341,-2154.0,0.00022,2]
[318041210,1710048633350,-459.948493,0.00022393,2]
[318041212,1710048633360,-1000.0,0.00022651,2]
[318041214,1710048633369,-1000.0,0.00022666,2]
[318041216,1710048633378,-459.948493,0.00022673,2]
[318041218,1710048633387,-1000.0,0.00022696,2]
[318041220,1710048633396,-500.00000001,0.00022699,2]
[318041222,1710048633406,-39592.66381778,0.000227,2]
[318041693,1710048638436,-277.592,0.00022473,2]
[318042111,1710048644273,-295.69999991,0.00022473,2]
[318042332,1710048646427,-2604.67445085,0.00022473,2]
[318042334,1710048646436,-7608.40615595,0.000227,2]
[318042336,1710048646449,-342.36884967,0.000227,2]
[318045600,1710049513895,-401.4224827,0.0001589,2]
[318045601,1710049513917,-155.15515516,0.00015891,2]
[318045602,1710049513940,-160.37161933,0.00015892,2]
[318045603,1710049513961,-2115.18316529,0.00015892,2]
[318045604,1710049513983,-261.86757752,0.00015893,2]
[318045676,1710049577484,1456.10926403,0.00015729,2]
[318045686,1710049580683,-155.15515516,0.00015887,2]
[318045687,1710049580705,-596.19717157,0.00015888,2]